bitfinex/quotes_BTCUSD_20240921
["timestamp","ask_amount","ask_price","bid_price","bid_amount"]
[1726895132864,0.16305367,62864.0,62862.0,0.0037205]
[1726895133072,0.38948781,62864.0,62862.0,0.0037205]
[1726895135318,0.38948781,62864.0,62863.0,0.00265]
[1726895135547,0.48448697,62864.0,62863.0,0.00265]
[1726895135768,0.48448697,62864.0,62863.0,0.00165]
[1726895136209,0.49848697,62864.0,62863.0,0.00265]
[1726895137092,0.49849102,62864.0,62863.0,0.00265]
[1726895138194,0.40348781,62864.0,62863.0,0.00265]
[1726895138406,0.49849102,62864.0,62863.0,0.00265]
[1726895138686,0.40348781,62864.0,62863.0,0.00265]
[1726895139112,0.49850632,62864.0,62863.0,0.00265]
[1726895139315,0.17705367,62864.0,62863.0,0.00265]
[1726895139538,0.4051259,62864.0,62863.0,0.00265]
[1726895140446,0.52389569,62864.0,62863.0,0.00265]
[1726895141114,0.61881309,62864.0,62863.0,0.00265]
[1726895141593,0.52377508,62864.0,62863.0,0.00265]
[1726895142311,0.52377508,62864.0,62835.0,0.04767654]
[1726895142312,0.1,62851.0,62835.0,0.04767654]
[1726895142600,0.31816,62862.0,62831.0,0.0159034]
[1726895142601,0.11864918,62836.0,62831.0,0.0159034]
[1726895142853,0.11879911,62834.0,62832.0,0.0175534]
[1726895143099,0.2544198,62833.0,62832.0,0.00165]
[1726895143371,0.2544198,62833.0,62816.0,0.0001]
[1726895143372,0.259184,62820.0,62816.0,0.0001]
[1726895143616,0.56510313,62820.0,62816.0,0.0001]
[1726895143845,0.1,62818.0,62816.0,0.0001]
[1726895144083,0.54112548,62817.0,62816.0,0.0001]
[1726895144319,0.45397246,62817.0,62816.0,0.0001]
[1726895144778,0.54864609,62817.0,62816.0,0.0001]
[1726895145007,0.17852453,62817.0,62816.0,0.0001]
[1726895145250,0.02151851,62817.0,62816.0,0.0001]
[1726895145741,0.00751851,62817.0,62816.0,0.0001]
[1726895145978,0.28124318,62817.0,62816.0,0.0001]
[1726895146213,0.1,62816.0,62805.0,0.0025805]
[1726895146677,0.00706737,62815.0,62805.0,0.0025805]
[1726895146910,0.00706737,62815.0,62807.0,0.023]
[1726895147142,0.00706737,62815.0,62806.0,0.0956]
[1726895147370,0.014,62817.0,62806.0,0.0956]
[1726895147617,0.18124318,62818.0,62806.0,0.0956]
[1726895148098,0.014,62816.0,62806.0,0.0956]
[1726895148352,0.014,62816.0,62807.0,0.95476028]
[1726895148598,0.18124318,62818.0,62807.0,0.95476028]
[1726895148842,0.19424318,62818.0,62807.0,0.95476028]
[1726895149314,0.18124318,62818.0,62807.0,0.95476028]
[1726895151533,0.013,62816.0,62807.0,0.95476028]
[1726895151989,0.18124318,62818.0,62807.0,0.95476028]
[1726895152188,0.18124318,62821.0,62807.0,0.95476028]
[1726895152414,0.013,62818.0,62807.0,0.95476028]
[1726895152686,0.0127,62818.0,62807.0,0.95476028]
[1726895152936,0.18064318,62821.0,62807.0,0.95476028]
[1726895153168,0.013,62816.0,62807.0,0.95476028]
[1726895153649,0.0127,62816.0,62807.0,0.95476028]
[1726895153883,0.012,62816.0,62807.0,0.95476028]
[1726895154162,0.012,62816.0,62808.0,0.18605367]
[1726895154416,0.0118,62816.0,62808.0,0.18605367]
[1726895154646,0.0115,62816.0,62808.0,0.18605367]
[1726895154867,0.011,62816.0,62808.0,0.18605367]
[1726895155097,0.18054318,62821.0,62808.0,0.18687867]
[1726895155346,0.0139,62818.0,62808.0,0.18687867]
[1726895155771,0.18124318,62822.0,62808.0,0.18687867]
[1726895156206,0.014,62816.0,62808.0,0.18687867]
[1726895156683,0.1,62835.0,62815.0,0.95476028]
[1726895156939,0.014,62822.0,62808.0,0.18687867]
[1726895157173,0.014,62822.0,62816.0,0.95476028]
[1726895157404,0.014,62822.0,62808.0,0.18687867]
[1726895157640,0.014,62822.0,62814.0,0.95476028]
[1726895157867,0.014,62822.0,62808.0,0.18687867]
[1726895158329,0.18124318,62831.0,62808.0,0.18687867]
[1726895158565,0.014,62816.0,62808.0,0.18687867]
[1726895159042,0.95476028,62828.0,62808.0,0.18687867]
[1726895159964,0.014,62822.0,62808.0,0.18687867]
[1726895161336,0.95476028,62828.0,62808.0,0.18687867]
[1726895161564,0.96876028,62828.0,62808.0,0.18687867]
[1726895162063,0.16305367,62830.0,62814.0,0.95476028]
[1726895162292,0.95476028,62829.0,62814.0,0.95476028]
[1726895162513,0.014,62822.0,62814.0,0.95476028]
[1726895162730,0.014,62822.0,62815.0,0.0751]
[1726895162983,0.38176794,62847.0,62815.0,0.0751]
[1726895162984,0.18124318,62835.0,62816.0,0.023]
[1726895163222,0.95476028,62833.0,62817.0,0.16623698]
[1726895163460,0.014,62830.0,62821.0,0.95476028]
[1726895163694,0.014,62830.0,62822.0,0.18923679]
[1726895164655,0.95476028,62836.0,62822.0,0.18923679]
[1726895164891,0.014,62835.0,62822.0,0.18923679]
[1726895165154,0.00114,62852.0,62834.0,0.1666]
[1726895165395,0.95476028,62847.0,62835.0,0.18923597]
[1726895165623,0.00114,62852.0,62835.0,0.18605367]
[1726895166108,0.00114,62852.0,62837.0,0.023]
[1726895166343,0.00114,62852.0,62839.0,0.023]
[1726895166589,0.00114,62852.0,62841.0,0.023]
[1726895166811,0.00114,62852.0,62841.0,0.16305367]
[1726895167034,0.00114,62852.0,62842.0,0.023]
[1726895167752,0.002792,62852.0,62842.0,0.023]
[1726895167988,0.003792,62852.0,62843.0,0.95476028]
[1726895168511,0.002792,62852.0,62843.0,0.95476028]
[1726895168737,0.005792,62852.0,62843.0,0.95476028]
[1726895169219,0.002792,62852.0,62843.0,0.95476028]
[1726895169691,0.006792,62852.0,62842.0,0.023]
[1726895170853,0.002792,62852.0,62842.0,0.023]
[1726895171148,0.007792,62852.0,62842.0,0.023]
[1726895171375,0.18124318,62844.0,62834.0,0.0751]
[1726895171614,0.18124318,62839.0,62838.0,0.23867298]
[1726895172145,0.18124318,62839.0,62831.0,0.16305367]
[1726895172386,0.18124318,62839.0,62830.0,0.1]
[1726895172627,0.18124318,62839.0,62834.0,0.001]
[1726895174532,0.18124318,62839.0,62829.0,0.23867298]
[1726895174778,0.18124318,62839.0,62831.0,0.001]
[1726895175033,0.18124318,62835.0,62831.0,0.001]
[1726895175516,0.18124318,62835.0,62828.0,0.23867298]
[1726895175741,0.18124318,62835.0,62834.0,0.001]
[1726895176207,0.18124318,62835.0,62828.0,0.23867298]
[1726895176439,0.19124318,62835.0,62831.0,0.001]
[1726895177873,0.18124318,62835.0,62821.0,0.023]
[1726895178102,0.18124318,62835.0,62834.0,0.001]
[1726895178103,0.014,62835.0,62834.0,0.001]
[1726895178333,0.0132,62835.0,62834.0,0.001]
[1726895178621,0.1,62849.0,62827.0,0.23867298]
[1726895178864,0.18124318,62830.0,62827.0,0.23867298]
[1726895179111,0.18124318,62830.0,62829.0,0.95498062]
[1726895179584,0.18124318,62830.0,62822.0,1.11803429]
[1726895179827,0.18124318,62830.0,62823.0,0.023]
[1726895181531,0.19024318,62830.0,62829.0,0.001]
[1726895181772,0.18124318,62830.0,62823.0,0.023]
[1726895182001,0.18124318,62830.0,62824.0,0.23875276]
[1726895182234,0.19024318,62830.0,62824.0,0.23875276]
[1726895182948,0.18124318,62830.0,62824.0,0.23875276]
[1726895184419,0.19024318,62830.0,62824.0,0.23975276]
[1726895186558,0.18124318,62825.0,62824.0,0.001]
[1726895187474,0.18124318,62825.0,62817.0,0.023]
[1726895187699,0.18124318,62825.0,62817.0,0.123]
[1726895187920,0.18524318,62825.0,62817.0,0.123]
[1726895188604,0.18124318,62825.0,62817.0,0.123]
[1726895188843,0.18124318,62825.0,62817.0,0.027]
[1726895190755,0.18124318,62825.0,62818.0,0.23875276]
[1726895191232,0.19224318,62825.0,62818.0,0.23875276]
[1726895191732,0.18124318,62825.0,62818.0,0.23875276]
[1726895192231,0.011,62825.0,62818.0,0.23975276]
[1726895193177,0.011,62825.0,62820.0,0.0998]
[1726895193400,0.011,62825.0,62821.0,0.18923665]
[1726895194098,0.001652,62835.0,62821.0,0.18923665]
[1726895194326,0.001652,62835.0,62821.0,0.18605367]
[1726895194551,0.011,62825.0,62821.0,0.18605367]
[1726895194775,0.011,62825.0,62822.0,0.95506423]
[1726895195022,0.001652,62835.0,62823.0,0.18605367]
[1726895195463,0.001652,62835.0,62824.0,0.00318297]
[1726895195685,0.001652,62835.0,62825.0,0.18923664]
[1726895195879,0.005652,62835.0,62825.0,0.18923664]
[1726895196351,0.005652,62835.0,62825.0,0.18605367]
[1726895196806,0.005652,62835.0,62826.0,0.95506423]
[1726895197045,0.001652,62835.0,62826.0,0.95506423]
[1726895197498,0.012652,62835.0,62826.0,0.95506423]
[1726895198450,0.001652,62835.0,62826.0,0.95506423]
[1726895198897,0.012652,62835.0,62826.0,0.95606423]
[1726895201540,0.012652,62835.0,62826.0,0.001]
[1726895202728,0.18124318,62833.0,62826.0,0.001]
[1726895203438,0.18124318,62833.0,62827.0,0.95506423]
[1726895203665,0.001652,62835.0,62827.0,0.95506423]
[1726895204176,0.009,62833.0,62827.0,0.95506423]
[1726895205072,0.001652,62835.0,62827.0,0.95506423]
[1726895205522,0.001652,62835.0,62825.0,0.18605367]
[1726895205755,0.001652,62835.0,62826.0,0.23873566]
[1726895206452,0.009,62833.0,62827.0,0.001]
[1726895207355,0.001652,62835.0,62826.0,0.23873566]
[1726895207797,0.012652,62835.0,62826.0,0.23973566]
[1726895208054,0.012652,62835.0,62826.0,0.31573566]
[1726895208289,0.001652,62835.0,62826.0,0.31473566]
[1726895209661,0.009,62833.0,62827.0,0.001]
[1726895210157,0.001652,62835.0,62826.0,0.31423566]
[1726895210367,0.012652,62835.0,62826.0,0.31483566]
[1726895210815,0.001652,62835.0,62826.0,0.31383566]
[1726895211060,0.001652,62835.0,62826.0,0.31303566]
[1726895211288,0.009,62833.0,62827.0,0.0009]
[1726895211540,0.009,62833.0,62827.0,0.0008]
[1726895212051,0.009,62833.0,62826.0,0.31293566]
[1726895212525,0.009,62833.0,62826.0,0.31283566]
[1726895212743,0.001652,62835.0,62826.0,0.31243566]
[1726895212964,0.012652,62835.0,62826.0,0.31293566]
[1726895213436,0.001652,62835.0,62826.0,0.31183566]
[1726895213683,0.001652,62835.0,62826.0,0.31173566]
[1726895213923,0.009,62833.0,62826.0,0.31273566]
[1726895214164,0.009,62833.0,62826.0,0.31173566]
[1726895214410,0.001652,62835.0,62826.0,0.31173566]
[1726895214657,0.012652,62835.0,62826.0,0.31273566]
[1726895215920,0.001652,62835.0,62826.0,0.31173566]
[1726895216167,0.009,62833.0,62826.0,0.31273566]
[1726895216643,0.001652,62835.0,62826.0,0.31173566]
[1726895216902,0.001652,62835.0,62828.0,0.023]
[1726895217121,0.012652,62835.0,62828.0,0.023]
[1726895217606,0.001652,62835.0,62828.0,0.023]
[1726895217850,0.009,62833.0,62828.0,0.023]
[1726895219462,0.009,62833.0,62826.0,0.001826]
[1726895219463,0.18124318,62832.0,62826.0,0.001826]
[1726895219718,0.18124318,62832.0,62826.0,0.000826]
[1726895219945,0.18124318,62832.0,62828.0,0.001]
[1726895220408,0.18124318,62832.0,62826.0,0.000826]
[1726895220635,0.22876009,62832.0,62826.0,0.000826]
[1726895220851,0.18924318,62832.0,62827.0,0.01759738]
[1726895221339,0.23676009,62832.0,62826.0,0.001826]
[1726895221610,0.23676009,62832.0,62827.0,0.01760646]
[1726895221851,0.23676009,62832.0,62826.0,0.001826]
[1726895222568,0.23676009,62832.0,62827.0,0.23873566]
[1726895223039,0.18124318,62832.0,62826.0,0.000826]
[1726895223306,0.18924318,62832.0,62827.0,0.001]
[1726895224010,0.008,62832.0,62827.0,0.001]
[1726895224500,0.04751691,62833.0,62826.0,0.000826]
[1726895225902,0.008,62832.0,62826.0,0.001826]
[1726895226124,0.05551691,62832.0,62826.0,0.001826]
[1726895226338,0.04751691,62833.0,62826.0,0.000826]
[1726895226843,0.04751691,62832.0,62826.0,0.001826]
[1726895227295,0.04751691,62832.0,62826.0,0.000826]
[1726895227557,0.05551691,62832.0,62826.0,0.001826]
[1726895228503,0.18124318,62828.0,62826.0,0.001826]
[1726895228715,0.22876009,62828.0,62826.0,0.001826]
[1726895229427,0.18124318,62828.0,62826.0,0.001826]
[1726895229659,0.18124318,62828.0,62826.0,0.000826]
[1726895229891,0.18524318,62828.0,62826.0,0.000826]
[1726895230124,0.12284393,62828.0,62826.0,0.000826]
[1726895230617,0.11884393,62828.0,62826.0,0.00077192]
[1726895230878,0.04751691,62830.0,62826.0,0.00077192]
[1726895231792,0.04758139,62831.0,62826.0,0.00077192]
[1726895232019,0.009,62828.0,62826.0,0.00177192]
[1726895232493,0.009,62828.0,62826.0,0.00077192]
[1726895232724,0.04758139,62831.0,62826.0,0.00077192]
[1726895232957,0.011,62830.0,62826.0,0.00177192]
[1726895233424,0.04758139,62831.0,62826.0,0.00077192]
[1726895233650,0.009,62828.0,62826.0,0.00177192]
[1726895235020,0.04758139,62831.0,62826.0,0.00077192]
[1726895235493,0.05858139,62830.0,62826.0,0.00177192]
[1726895236001,0.04758139,62830.0,62826.0,0.00077192]
[1726895236232,0.009,62828.0,62826.0,0.00177192]
[1726895236688,0.11884393,62832.0,62826.0,0.00077192]
[1726895236915,0.04758705,62831.0,62826.0,0.00177192]
[1726895237151,0.011,62830.0,62827.0,0.23873566]
[1726895237394,0.011,62830.0,62826.0,0.00177192]
[1726895237618,0.05858705,62830.0,62826.0,0.00177192]
[1726895238325,0.04758705,62830.0,62826.0,0.00077192]
[1726895238618,0.009,62828.0,62826.0,0.00177192]
[1726895239099,0.04758705,62830.0,62826.0,0.00077192]
[1726895239347,0.05858705,62830.0,62826.0,0.00177192]
[1726895239861,0.04758705,62830.0,62826.0,0.00077192]
[1726895240327,0.009,62828.0,62826.0,0.00177192]
[1726895241541,0.04758705,62831.0,62826.0,0.00077192]
[1726895241766,0.04758311,62831.0,62826.0,0.00077192]
[1726895241995,0.011,62830.0,62826.0,0.00177192]
[1726895242247,0.05858311,62830.0,62826.0,0.00177192]
[1726895242501,0.04758311,62831.0,62826.0,0.00077192]
[1726895242982,0.009,62828.0,62826.0,0.00177192]
[1726895243494,0.04758311,62831.0,62826.0,0.00077192]
[1726895243727,0.04758311,62830.0,62826.0,0.00077192]
[1726895244196,0.11884393,62828.0,62826.0,0.00077192]
[1726895244439,0.16642704,62828.0,62826.0,0.00077192]
[1726895244668,0.04758311,62827.0,62826.0,0.00177192]
[1726895245166,0.04758311,62827.0,62826.0,0.00077192]
[1726895245402,0.19021859,62828.0,62826.0,0.00077192]
[1726895245403,0.19921859,62828.0,62826.0,0.00177192]
[1726895245634,0.07137466,62827.0,62826.0,0.00177192]
[1726895245868,0.19021859,62828.0,62826.0,0.00077192]
[1726895246337,0.0793534,62827.0,62826.0,0.00177192]
[1726895247252,0.008,62827.0,62826.0,0.00177192]
[1726895248151,0.19019733,62828.0,62826.0,0.00077192]
[1726895248605,0.19919733,62828.0,62826.0,0.00177192]
[1726895249101,0.19019733,62828.0,62826.0,0.00077192]
[1726895249332,0.20219733,62828.0,62826.0,0.00177192]
[1726895249775,0.0713534,62827.0,62826.0,0.00177192]
[1726895251382,0.0713534,62827.0,62826.0,0.00077192]
[1726895251615,0.0823534,62827.0,62826.0,0.00177192]
[1726895252774,0.27003173,62827.0,62826.0,0.00177192]
[1726895253006,0.38895406,62827.0,62826.0,0.00177192]
[1726895253242,0.27003173,62827.0,62826.0,0.00177192]
[1726895255818,0.26971721,62827.0,62826.0,0.00177192]
[1726895256345,0.26971721,62827.0,62813.0,0.23873566]
[1726895256346,0.1,62820.0,62813.0,0.23873566]
[1726895256603,0.41479397,62819.0,62813.0,0.23873566]
[1726895256862,0.23772943,62815.0,62813.0,0.23873566]
[1726895257106,0.23772943,62815.0,62808.0,0.000825]
[1726895257107,0.07133534,62814.0,62808.0,0.000825]
[1726895257339,0.11884393,62812.0,62811.0,0.95517066]
[1726895257581,0.11884393,62812.0,62808.0,0.000825]
[1726895257817,0.12714277,62812.0,62808.0,0.000825]
[1726895258050,0.00829884,62812.0,62808.0,0.000825]
[1726895258547,0.00829882,62811.0,62808.0,0.000825]
[1726895258998,0.04753895,62813.0,62808.0,0.000825]
[1726895259230,0.18119768,62809.0,62808.0,0.000825]
[1726895259697,0.18949654,62809.0,62808.0,0.000825]
[1726895261869,0.19749654,62809.0,62808.0,0.000825]
[1726895262566,0.18949654,62809.0,62808.0,0.000825]
[1726895263230,0.00829886,62809.0,62808.0,0.000825]
[1726895263664,0.18119768,62813.0,62808.0,0.000825]
[1726895263941,0.00819865,62809.0,62808.0,0.000825]
[1726895264131,0.18119768,62813.0,62808.0,0.000825]
[1726895264356,0.04750477,62815.0,62808.0,0.000825]
[1726895264357,0.18939633,62809.0,62808.0,0.000825]
[1726895264574,0.19019768,62809.0,62808.0,0.000825]
[1726895264785,0.19839633,62809.0,62808.0,0.000825]
[1726895265445,0.18939633,62809.0,62808.0,0.000825]
[1726895267206,0.00819865,62809.0,62808.0,0.000825]
[1726895267640,0.19319768,62813.0,62808.0,0.000825]
[1726895267641,0.18119768,62813.0,62808.0,0.000825]
[1726895267849,0.0191986,62809.0,62808.0,0.000825]
[1726895268083,0.011,62809.0,62808.0,0.000825]
[1726895268304,0.0191986,62809.0,62808.0,0.000825]
[1726895268528,0.0081986,62809.0,62808.0,0.000825]
[1726895269169,0.19519768,62813.0,62808.0,0.000825]
[1726895269452,0.0081986,62809.0,62808.0,0.000825]
[1726895269655,0.18119768,62813.0,62808.0,0.000825]
[1726895269859,0.00819857,62812.0,62808.0,0.000825]
[1726895270096,0.0081986,62809.0,62808.0,0.000825]
[1726895270307,0.18119768,62813.0,62808.0,0.000825]
[1726895270535,0.00819857,62811.0,62808.0,0.000825]
[1726895270746,0.011,62809.0,62808.0,0.000825]
[1726895271164,0.0191986,62809.0,62808.0,0.000825]
[1726895271377,0.0081986,62809.0,62808.0,0.000825]
[1726895271812,0.19519768,62813.0,62808.0,0.000825]
[1726895272016,0.0081986,62809.0,62808.0,0.000825]
[1726895272260,0.18119768,62813.0,62808.0,0.000825]
[1726895272468,0.0191986,62809.0,62808.0,0.000825]
[1726895272883,0.011,62809.0,62808.0,0.000825]
[1726895273108,0.0191986,62809.0,62808.0,0.000825]
[1726895273742,0.0081986,62809.0,62808.0,0.000825]
[1726895273959,0.19519768,62813.0,62808.0,0.000825]
[1726895274175,0.0081986,62809.0,62808.0,0.000825]
[1726895274409,0.19519768,62813.0,62808.0,0.000825]
[1726895274616,0.0081986,62809.0,62808.0,0.000825]
[1726895274829,0.18119768,62813.0,62808.0,0.000825]
[1726895275052,0.0191986,62809.0,62808.0,0.000825]
[1726895275279,0.011,62809.0,62808.0,0.000825]
[1726895275506,0.0191986,62809.0,62808.0,0.000825]
[1726895276852,0.0081986,62809.0,62808.0,0.000825]
[1726895277314,0.22865307,62817.0,62808.0,0.000825]
[1726895277535,0.014,62813.0,62808.0,0.000825]
[1726895277770,0.00812176,62812.0,62809.0,0.9552543]
[1726895277988,0.00812176,62812.0,62810.0,0.08028383]
[1726895278133,0.11885262,62826.0,62810.0,0.08028383]
[1726895278352,0.9552543,62822.0,62810.0,0.08028383]
[1726895278567,0.11885262,62826.0,62810.0,0.08028383]
[1726895278762,0.00812349,62821.0,62811.0,0.9552543]
[1726895278968,0.11885262,62826.0,62812.0,0.00318377]
[1726895279477,0.00812349,62825.0,62812.0,0.00318377]
[1726895279916,0.11885262,62826.0,62812.0,0.00318377]
[1726895280170,0.00812349,62825.0,62812.0,0.00318377]
[1726895280390,0.00812349,62825.0,62813.0,0.28205367]
[1726895280629,0.00165,62815.0,62814.0,0.00318355]
[1726895281056,0.00165,62815.0,62814.0,0.02618355]
[1726895281058,0.00165,62815.0,62814.0,0.18923722]
[1726895281511,0.00165,62815.0,62814.0,0.28923722]
[1726895281951,0.00165,62815.0,62814.0,0.3066528]
[1726895282166,0.00765,62815.0,62814.0,0.3066528]
[1726895283920,0.00165,62815.0,62814.0,0.3989528]
[1726895284137,0.001652,62827.0,62816.0,0.0923]
[1726895284361,0.001652,62827.0,62823.0,0.023]
[1726895284362,0.23879837,62825.0,62823.0,0.023]
[1726895284580,0.00836811,62826.0,62825.0,0.023]
[1726895284823,0.001652,62827.0,62825.0,0.18605367]
[1726895285023,0.001652,62827.0,62826.0,0.16623661]
[1726895285245,0.001652,62827.0,62826.0,0.18923661]
[1726895288493,0.001652,62827.0,62826.0,0.18605367]
[1726895296695,0.18276044,62827.0,62819.0,0.1]
[1726895296963,0.18276044,62827.0,62820.0,0.18605367]
[1726895297167,0.00842806,62826.0,62822.0,0.023]
[1726895297385,0.00842806,62826.0,62824.0,0.023]
[1726895297607,0.005652,62827.0,62825.0,0.16305367]
[1726895297608,0.001652,62827.0,62825.0,0.16305367]
[1726895298895,0.005652,62827.0,62825.0,0.16305367]
[1726895299573,0.001652,62827.0,62825.0,0.16305367]
[1726895300505,0.005652,62827.0,62825.0,0.16305367]
[1726895304720,0.00840802,62826.0,62825.0,0.18605367]
[1726895306645,0.01140802,62826.0,62825.0,0.18605367]
[1726895307945,0.003,62826.0,62825.0,0.18605367]
[1726895310387,0.01000829,62826.0,62825.0,0.18605367]
[1726895312949,0.01000829,62826.0,62815.0,0.000825]
[1726895313189,0.01000829,62826.0,62817.0,0.023]
[1726895313424,0.01000829,62826.0,62818.0,0.16305367]
[1726895313425,0.003,62826.0,62818.0,0.16305367]
[1726895313654,0.00700246,62825.0,62819.0,0.023]
[1726895313893,0.00700246,62825.0,62821.0,0.023]
[1726895314128,0.00700246,62825.0,62822.0,0.16305367]
[1726895314373,0.00700246,62825.0,62823.0,0.023]
[1726895314602,0.001652,62827.0,62823.0,0.18605367]
[1726895314849,0.00700246,62824.0,62823.0,0.18605367]
[1726895315113,0.001,62826.0,62823.0,0.18605367]
[1726895315343,0.00700248,62824.0,62823.0,0.18605367]
[1726895315613,0.001652,62827.0,62823.0,0.18605367]
[1726895315853,0.001652,62827.0,62823.0,0.023]
[1726895316093,0.00700246,62826.0,62823.0,0.023]
[1726895316292,0.00700246,62826.0,62815.0,0.023825]
[1726895316570,0.00700246,62826.0,62819.0,0.95508703]
[1726895316817,0.11883253,62825.0,62819.0,0.16305367]
[1726895317293,0.00700246,62824.0,62819.0,0.16305367]
[1726895317756,0.00700246,62824.0,62823.0,0.001]
[1726895318005,0.00698458,62824.0,62823.0,0.001]
[1726895318242,0.00698458,62824.0,62819.0,0.16305367]
[1726895318481,0.005,62825.0,62819.0,0.16405367]
[1726895318714,0.00698456,62823.0,62819.0,0.16405367]
[1726895318953,0.00165,62826.0,62819.0,0.16305367]
[1726895319198,0.00165,62826.0,62821.0,0.023]
[1726895319480,0.004,62824.0,62821.0,0.18605367]
[1726895319951,0.00698457,62823.0,62821.0,0.18605367]
[1726895321094,0.003,62823.0,62821.0,0.18605367]
[1726895321314,0.00698456,62822.0,62821.0,0.18605367]
[1726895321791,0.00165,62826.0,62821.0,0.18605367]
[1726895322035,0.004,62823.0,62821.0,0.18605367]
[1726895322512,0.00165,62826.0,62821.0,0.18605367]
[1726895322727,0.00165,62826.0,62815.0,0.000825]
[1726895322728,0.00998454,62822.0,62815.0,0.023825]
[1726895322947,0.003,62822.0,62815.0,0.023825]
[1726895323170,0.003,62822.0,62817.0,0.023]
[1726895324067,0.00165,62826.0,62817.0,0.023]
[1726895324509,0.004,62823.0,62817.0,0.023]
[1726895324738,0.004,62823.0,62819.0,0.023]
[1726895324990,0.00165,62826.0,62821.0,0.023]
[1726895325205,0.00165,62826.0,62822.0,0.16623683]
[1726895325450,0.00365,62826.0,62823.0,0.023]
[1726895325658,0.00698456,62825.0,62824.0,0.00318316]
[1726895326789,0.00698456,62825.0,62824.0,0.18923683]
[1726895327013,0.00165,62826.0,62824.0,0.1892368]
[1726895327238,0.00165,62826.0,62825.0,0.18605367]
[1726895327952,0.00865,62826.0,62825.0,0.18605367]
[1726895328421,0.00165,62826.0,62825.0,0.18605367]
[1726895328674,0.00665,62826.0,62825.0,0.18705367]
[1726895329798,0.00665,62826.0,62825.0,0.27735367]
[1726895330736,0.00665,62826.0,62825.0,0.28053648]
[1726895330966,0.00665,62826.0,62825.0,0.38053648]
[1726895331186,0.00165,62826.0,62825.0,0.37635367]
[1726895332414,0.00265,62826.0,62825.0,0.45665367]
[1726895333557,0.00165,62826.0,62825.0,0.45165367]
[1726895334016,0.00265,62826.0,62825.0,0.45765367]
[1726895335402,0.00265,62826.0,62825.0,0.47405151]
[1726895337786,0.00265,62826.0,62825.0,0.52174384]
[1726895338002,0.00265,62826.0,62825.0,0.47405151]
[1726895338488,0.00265,62826.0,62825.0,0.47408021]
[1726895341119,0.00265,62826.0,62825.0,0.47408421]
[1726895342493,0.00265,62826.0,62825.0,0.47408269]
[1726895343597,0.00265,62826.0,62825.0,0.45765367]
[1726895343817,0.00265,62826.0,62825.0,0.47408045]
[1726895345618,0.00265,62826.0,62825.0,0.47608045]
[1726895345849,0.00265,62826.0,62825.0,0.57146512]
[1726895346082,0.00265,62826.0,62825.0,0.59531129]
[1726895346326,0.00265,62826.0,62825.0,0.62715129]
[1726895346551,0.00165,62826.0,62825.0,0.62115129]
[1726895346776,0.00265,62826.0,62825.0,0.50792045]
[1726895347201,0.00165,62826.0,62825.0,0.50192045]
[1726895347446,0.001652,62835.0,62833.0,0.1]
[1726895347664,0.001652,62835.0,62834.0,0.42449505]
[1726895347893,0.001652,62835.0,62834.0,0.42131298]
[1726895348124,0.001652,62835.0,62834.0,0.48337727]
[1726895349246,0.001652,62835.0,62834.0,0.50106165]
[1726895350628,0.001652,62835.0,62834.0,0.51506165]
[1726895351767,0.001652,62835.0,62834.0,0.33416483]
[1726895354530,0.001652,62835.0,62834.0,0.33413027]
[1726895358031,0.001652,62835.0,62834.0,0.33412778]
[1726895365528,0.001652,62835.0,62834.0,0.31773805]
[1726895365739,0.001652,62835.0,62834.0,0.33414526]
[1726895367798,0.001652,62835.0,62834.0,0.31773805]
[1726895368059,0.001652,62835.0,62834.0,0.33418686]
[1726895370018,0.001652,62835.0,62834.0,0.45293264]
[1726895374090,0.001652,62835.0,62834.0,0.43648383]
[1726895374323,0.001652,62835.0,62834.0,0.45307029]
[1726895375011,0.001652,62835.0,62834.0,0.43648383]
[1726895375241,0.001652,62835.0,62834.0,0.45307583]
[1726895378709,0.001652,62835.0,62834.0,0.45321843]
[1726895380798,0.001652,62835.0,62834.0,0.54841843]
[1726895381027,0.001652,62835.0,62834.0,0.64364361]
[1726895381251,0.001652,62835.0,62834.0,0.6694499]
[1726895381681,0.001652,62835.0,62834.0,0.56352383]
[1726895381896,0.001652,62835.0,62834.0,0.72313151]
[1726895382108,0.001652,62835.0,62834.0,0.58029374]
[1726895382508,0.001652,62835.0,62834.0,0.56829374]
[1726895382969,0.002652,62835.0,62834.0,0.58229374]
[1726895384365,0.001652,62835.0,62834.0,0.56829374]
[1726895384613,0.002652,62835.0,62834.0,0.58029374]
[1726895385049,0.002652,62835.0,62834.0,0.58028039]
[1726895386376,0.002652,62835.0,62834.0,0.58228039]
[1726895388379,0.002652,62835.0,62834.0,0.58228842]
[1726895391918,0.002652,62835.0,62834.0,0.56552383]
[1726895392128,0.002652,62835.0,62834.0,0.58229183]
[1726895397697,0.002652,62835.0,62834.0,0.58229418]
[1726895401117,0.002652,62835.0,62834.0,0.58231915]
[1726895401625,0.002652,62835.0,62834.0,0.46357337]
[1726895401831,0.002652,62835.0,62834.0,0.58231915]
[1726895404551,0.002652,62835.0,62834.0,0.58230146]
[1726895407838,0.002652,62835.0,62834.0,0.56552383]
[1726895408070,0.002652,62835.0,62834.0,0.58230303]
[1726895408316,0.002652,62835.0,62834.0,0.60035161]
[1726895410372,0.002652,62835.0,62834.0,0.60036632]
[1726895411021,0.002652,62835.0,62834.0,0.48162054]
[1726895411228,0.002652,62835.0,62834.0,0.58231774]
[1726895411457,0.002652,62835.0,62834.0,0.60038242]
[1726895411933,0.002652,62835.0,62834.0,0.58358851]
[1726895412156,0.002652,62835.0,62834.0,0.60038592]
[1726895413666,0.002652,62835.0,62834.0,0.50518592]
[1726895414102,0.002652,62835.0,62834.0,0.53397196]
[1726895420664,0.002652,62835.0,62834.0,0.67696572]
[1726895422446,0.002652,62835.0,62834.0,0.67690831]
[1726895423380,0.002652,62835.0,62834.0,0.77070831]
[1726895423597,0.002652,62835.0,62834.0,0.62771455]
[1726895423844,0.002652,62835.0,62834.0,0.6277094]
[1726895425687,0.002652,62835.0,62834.0,0.83902448]
[1726895425929,0.0904,62851.0,62834.0,0.83902448]
[1726895425930,0.23875656,62848.0,62847.0,0.002]
[1726895426154,0.23875656,62858.0,62850.0,0.023]